bitfinex/quotes_BTCUSD_20250331
["timestamp","ask_amount","ask_price","bid_price","bid_amount"]
[1743398483916,0.2617619,82389.0,82388.0,0.001]
[1743398484123,0.2738989,82389.0,82388.0,0.001]
[1743398484266,0.2738989,82389.0,82388.0,0.14876]
[1743398484466,0.2738989,82389.0,82388.0,0.001]
[1743398484663,0.2738989,82389.0,82388.0,0.14868]
[1743398485104,0.2617619,82389.0,82388.0,0.14864]
[1743398485335,0.0190119,82389.0,82388.0,0.14864]
[1743398487201,0.242743,82392.0,82388.0,0.14864]
[1743398488238,0.242736,82394.0,82388.0,0.14764]
[1743398488598,0.242736,82394.0,82388.0,0.402528]
[1743398488795,0.24273,82396.0,82390.0,0.012137]
[1743398489024,0.242736,82394.0,82389.0,0.24275]
[1743398489235,0.242736,82394.0,82389.0,0.254887]
[1743398489447,0.254886,82390.0,82388.0,0.14764]
[1743398489772,0.242749,82390.0,82388.0,0.14764]
[1743398490346,0.26176093,82390.0,82388.0,0.14764]
[1743398492261,0.01901193,82390.0,82388.0,0.40253]
[1743398492489,0.01901193,82390.0,82388.0,0.159777]
[1743398492726,0.01901193,82390.0,82388.0,0.14764]
[1743398494786,0.26175993,82390.0,82388.0,0.14764]
[1743398495144,0.01901193,82390.0,82388.0,0.14764]
[1743398496810,0.26175993,82390.0,82388.0,0.14764]
[1743398497286,0.242748,82390.0,82388.0,0.14764]
[1743398498182,0.254885,82390.0,82388.0,0.14764]
[1743398498413,0.242756,82387.0,82386.0,0.02450556]
[1743398498819,0.24275,82389.0,82386.0,0.17490556]
[1743398499379,0.242756,82387.0,82386.0,0.17490556]
[1743398499788,0.242756,82387.0,82386.0,0.02550556]
[1743398499982,0.254893,82387.0,82386.0,0.00104687]
[1743398500230,0.27390589,82387.0,82386.0,4.687e-05]
[1743398500543,0.27390589,82387.0,82386.0,0.00104687]
[1743398502160,0.27390589,82387.0,82386.0,0.00204687]
[1743398502683,0.27390589,82387.0,82386.0,0.02694337]
[1743398506267,0.65313978,82387.0,82386.0,0.00204687]
[1743398506988,0.57390589,82387.0,82386.0,0.00204687]
[1743398507188,0.554893,82387.0,82386.0,0.00204687]
[1743398507398,0.554893,82387.0,82386.0,0.00104687]
[1743398507798,0.556893,82387.0,82386.0,0.00104687]
[1743398508011,0.556893,82387.0,82386.0,4.687e-05]
[1743398510406,0.57590666,82387.0,82386.0,4.687e-05]
[1743398511412,0.26376966,82387.0,82386.0,4.687e-05]
[1743398511613,0.27590666,82387.0,82386.0,4.687e-05]
[1743398512856,0.27390666,82387.0,82386.0,4.687e-05]
[1743398513283,0.27490666,82387.0,82386.0,4.687e-05]
[1743398513483,0.26276966,82387.0,82386.0,4.687e-05]
[1743398513690,0.02001366,82387.0,82386.0,0.09018387]
[1743398513896,0.02001366,82387.0,82386.0,0.33294287]
[1743398514064,0.02001366,82387.0,82386.0,0.07804687]
[1743398514471,0.01901366,82387.0,82386.0,0.07804687]
[1743398514886,0.01901366,82387.0,82386.0,0.08004687]
[1743398515489,0.01901366,82387.0,82386.0,0.09218387]
[1743398517434,0.242741,82393.0,82388.0,0.012137]
[1743398517933,0.24275,82389.0,82386.0,0.08004687]
[1743398518170,0.242756,82387.0,82386.0,0.08004687]
[1743398518372,0.24275,82389.0,82386.0,0.07904687]
[1743398518610,0.242756,82387.0,82386.0,0.07904687]
[1743398519057,0.242756,82387.0,82386.0,0.22728687]
[1743398519386,0.254893,82387.0,82386.0,0.22628687]
[1743398519636,0.254893,82387.0,82386.0,0.14828687]
[1743398520350,0.27390586,82387.0,82386.0,0.14828687]
[1743398520567,0.27390586,82387.0,82386.0,0.15028687]
[1743398520771,0.26176886,82387.0,82386.0,0.15028687]
[1743398521354,0.01901286,82387.0,82386.0,0.15028687]
[1743398523815,0.01901286,82387.0,82386.0,0.22608687]
[1743398526225,0.01901286,82387.0,82386.0,0.23822387]
[1743398526629,0.01901286,82387.0,82386.0,0.22608687]
[1743398529569,0.242747,82391.0,82386.0,0.22608687]
[1743398529758,0.242744,82392.0,82386.0,0.48098287]
[1743398529957,0.13530714,82400.0,82390.0,0.012137]
[1743398530130,0.2551953,82399.0,82394.0,0.0758]
[1743398530346,0.0124713,82399.0,82394.0,0.0758]
[1743398530545,0.0124713,82399.0,82395.0,0.0465]
[1743398530546,0.01901113,82398.0,82395.0,0.0465]
[1743398531892,0.26173713,82398.0,82395.0,0.0465]
[1743398532077,0.24273,82397.0,82395.0,0.0465]
[1743398532253,0.24273,82397.0,82395.0,0.0475]
[1743398533054,0.24273,82397.0,82395.0,0.0465]
[1743398533476,0.01901113,82398.0,82395.0,0.0465]
[1743398533678,0.01901113,82398.0,82395.0,0.0475]
[1743398534280,0.26173813,82398.0,82395.0,0.0475]
[1743398534721,0.01901113,82398.0,82396.0,0.0244431]
[1743398534927,0.06785958,82400.0,82396.0,0.0244431]
[1743398535065,0.0190109,82398.0,82396.0,0.0244431]
[1743398535266,0.2617359,82398.0,82396.0,0.0244431]
[1743398537048,0.254866,82396.0,82395.0,0.0465]
[1743398537676,0.0190109,82398.0,82395.0,0.07132746]
[1743398538220,0.2617369,82398.0,82396.0,0.001]
[1743398538403,0.0190109,82398.0,82396.0,0.001]
[1743398538598,0.0190109,82398.0,82395.0,0.07232746]
[1743398538762,0.0190109,82398.0,82395.0,0.07332746]
[1743398539388,0.2617379,82398.0,82395.0,0.07232746]
[1743398539591,0.2617379,82398.0,82396.0,0.001]
[1743398540254,0.254851,82401.0,82396.0,0.001]
[1743398541081,0.254851,82401.0,82395.0,0.07132746]
[1743398541318,0.254851,82401.0,82395.0,0.07232746]
[1743398541518,0.2547095,82401.0,82395.0,0.07232746]
[1743398541902,0.242721,82399.0,82395.0,0.07132746]
[1743398542744,0.242716,82401.0,82395.0,0.31405946]
[1743398542944,0.242721,82400.0,82395.0,0.31405946]
[1743398543312,0.01901093,82399.0,82395.0,0.07132746]
[1743398543882,0.01901093,82399.0,82396.0,0.24273]
[1743398544082,0.01901093,82399.0,82397.0,0.388884]
[1743398544249,0.01901093,82399.0,82397.0,0.14616]
[1743398546066,0.01901093,82399.0,82398.0,0.25486]
[1743398546627,0.25612479,82404.0,82398.0,0.25486]
[1743398548093,0.25712479,82404.0,82398.0,0.25486]
[1743398549411,0.243709,82404.0,82398.0,0.25486]
[1743398549847,0.01901002,82403.0,82398.0,0.25486]
[1743398550827,0.01901002,82403.0,82399.0,0.0757]
[1743398551182,0.02001002,82403.0,82399.0,0.0757]
[1743398551416,0.02001002,82403.0,82401.0,0.254847]
[1743398551931,0.01901002,82403.0,82401.0,0.254847]
[1743398552173,0.02001002,82403.0,82401.0,0.254847]
[1743398553434,0.01901002,82403.0,82402.0,0.012135]
[1743398553637,0.01901002,82403.0,82402.0,0.087835]
[1743398553843,0.02001002,82403.0,82402.0,0.087835]
[1743398554710,0.01901002,82403.0,82402.0,0.087835]
[1743398554917,0.01901002,82403.0,82402.0,0.091835]
[1743398555330,0.01901002,82403.0,82402.0,0.095835]
[1743398557178,0.01326379,82408.0,82404.0,0.012135]
[1743398557415,0.01326379,82408.0,82405.0,0.254838]
[1743398557658,0.242685,82412.0,82405.0,0.254838]
[1743398557859,0.242697,82407.0,82402.0,0.0837]
[1743398558067,0.242703,82405.0,82402.0,0.0837]
[1743398558267,0.242709,82403.0,82402.0,0.0757]
[1743398558471,0.24273,82396.0,82395.0,0.07132746]
[1743398558668,0.242724,82398.0,82395.0,0.29202746]
[1743398559015,0.242701,82406.0,82400.0,0.012135]
[1743398559229,0.242701,82406.0,82403.0,0.0763]
[1743398559609,0.25564833,82408.0,82403.0,0.0763]
[1743398559736,0.2427,82407.0,82403.0,0.0763]
[1743398559945,0.242703,82406.0,82403.0,0.0763]
[1743398560955,0.242706,82405.0,82403.0,0.0763]
[1743398561616,0.242706,82405.0,82403.0,0.0813]
[1743398561913,0.242706,82405.0,82403.0,0.0793]
[1743398562094,0.242706,82405.0,82403.0,0.0783]
[1743398562560,0.242706,82405.0,82403.0,0.0813]
[1743398563122,0.12926394,82404.0,82403.0,0.005]
[1743398563476,0.07267303,82404.0,82403.0,0.005]
[1743398564483,0.012136,82394.0,82393.0,0.63048]
[1743398564730,0.254872,82394.0,82393.0,0.63048]
[1743398565322,0.27388359,82394.0,82393.0,0.63048]
[1743398565492,0.27388359,82394.0,82393.0,0.77544]
[1743398565698,0.26174759,82394.0,82393.0,0.77544]
[1743398565906,0.26174759,82394.0,82393.0,0.78344]
[1743398566827,0.27388359,82394.0,82393.0,0.63848]
[1743398567062,0.27388359,82394.0,82393.0,0.78328]
[1743398567308,0.242736,82394.0,82393.0,0.78328]
[1743398568354,0.242736,82394.0,82393.0,0.63848]
[1743398568550,0.242736,82394.0,82393.0,0.78324]
[1743398568756,0.254872,82394.0,82393.0,0.7832]
[1743398569236,0.242736,82394.0,82393.0,0.7832]
[1743398570221,0.254872,82394.0,82393.0,0.7832]
[1743398570552,0.27388387,82394.0,82393.0,0.7832]
[1743398570967,0.26174787,82394.0,82393.0,0.7832]
[1743398572359,0.27388387,82394.0,82393.0,0.7832]
[1743398572561,0.27388387,82394.0,82393.0,0.63848]
[1743398572731,0.27388387,82394.0,82393.0,0.78296]
[1743398574022,0.26174787,82394.0,82393.0,0.78296]
[1743398574170,0.26174787,82394.0,82393.0,0.15248]
[1743398577545,0.242736,82394.0,82393.0,0.15248]
[1743398577735,0.254872,82394.0,82393.0,0.15248]
[1743398579718,0.254872,82394.0,82393.0,0.008]
[1743398580561,0.254872,82394.0,82393.0,0.004]
[1743398580705,0.254884,82390.0,82389.0,0.14392]
[1743398581327,0.254893,82387.0,82381.0,0.0784]
[1743398581543,0.254893,82387.0,82381.0,0.02400478]
[1743398582916,0.242756,82387.0,82386.0,0.07844687]
[1743398583118,0.254893,82387.0,82386.0,0.07844687]
[1743398583359,0.01901313,82390.0,82386.0,0.07844687]
[1743398583532,0.242756,82388.0,82386.0,0.07844687]
[1743398583942,0.01901313,82390.0,82387.0,0.0473]
[1743398585370,0.01901313,82390.0,82387.0,0.0493]
[1743398585545,0.01901313,82390.0,82387.0,0.0513]
[1743398585957,0.01901313,82390.0,82389.0,0.012137]
[1743398586152,0.01901313,82390.0,82389.0,0.090537]
[1743398586629,0.01901313,82390.0,82389.0,0.0784]
[1743398587365,0.26176013,82390.0,82389.0,0.0784]
[1743398587551,0.26176013,82390.0,82389.0,0.0804]
[1743398587992,0.242747,82390.0,82389.0,0.22416]
[1743398588436,0.242747,82390.0,82389.0,0.22616]
[1743398588965,0.242747,82390.0,82389.0,0.22636]
[1743398589389,0.242747,82390.0,82389.0,0.0824]
[1743398591222,0.26175922,82390.0,82389.0,0.0824]
[1743398592775,0.27389622,82390.0,82389.0,0.0824]
[1743398596407,0.26175922,82390.0,82389.0,0.0824]
[1743398596604,0.27389622,82390.0,82389.0,0.0824]
[1743398597212,0.254884,82390.0,82389.0,0.0824]
[1743398598297,0.254884,82390.0,82389.0,0.004]
[1743398599298,0.554884,82390.0,82389.0,0.004]
[1743398599998,0.7253808,82390.0,82389.0,0.004]
[1743398600199,0.7253808,82390.0,82389.0,0.002]
[1743398600405,0.63550438,82390.0,82389.0,0.002]
[1743398601921,0.554893,82387.0,82386.0,4.687e-05]
[1743398603344,0.555893,82387.0,82386.0,4.687e-05]
[1743398605669,0.61771987,82387.0,82386.0,4.687e-05]
[1743398610250,0.63673529,82387.0,82386.0,4.687e-05]
[1743398617693,0.61771987,82387.0,82386.0,4.687e-05]
[1743398618635,0.71842296,82387.0,82386.0,4.687e-05]
[1743398619808,0.73296381,82387.0,82386.0,8.7e-07]
[1743398620170,0.554937,82373.0,82372.0,0.0772]
[1743398620375,0.554937,82373.0,82372.0,0.07724698]
[1743398620582,0.67115233,82373.0,82372.0,4.698e-05]
[1743398620782,0.6323362,82373.0,82372.0,4.698e-05]
[1743398620980,0.65135379,82373.0,82372.0,4.698e-05]
[1743398621983,0.65235379,82373.0,82372.0,4.698e-05]
[1743398625055,0.65235379,82373.0,82372.0,9.8e-07]
[1743398625264,0.71754733,82373.0,82372.0,9.8e-07]
[1743398625450,0.77263862,82373.0,82372.0,9.8e-07]
[1743398626049,0.65235379,82373.0,82372.0,9.8e-07]
[1743398626410,0.6333362,82373.0,82372.0,9.8e-07]
[1743398626820,0.6363362,82373.0,82372.0,9.8e-07]
[1743398627468,0.6333362,82373.0,82372.0,9.8e-07]
[1743398627810,0.6353362,82373.0,82372.0,9.8e-07]
[1743398628020,0.6383362,82373.0,82372.0,9.8e-07]
[1743398628240,0.75862103,82373.0,82372.0,9.8e-07]
[1743398628414,0.75262103,82373.0,82372.0,9.8e-07]
[1743398628746,0.75562103,82373.0,82372.0,9.8e-07]
[1743398629935,0.77664041,82373.0,82372.0,9.8e-07]
[1743398630862,0.64181473,82373.0,82372.0,9.8e-07]
[1743398631064,0.64181473,82373.0,82372.0,0.07690098]
[1743398631865,0.63881473,82373.0,82372.0,0.07690098]
[1743398632245,0.63981473,82373.0,82372.0,0.07690098]
[1743398632788,0.63781473,82373.0,82372.0,0.07690098]
[1743398633122,0.63881473,82373.0,82372.0,0.07690098]
[1743398633687,0.63781473,82373.0,82372.0,0.07690098]
[1743398634025,0.63881473,82373.0,82372.0,0.07690098]
[1743398634938,0.66778241,82373.0,82372.0,0.07690098]
[1743398635550,0.63881473,82373.0,82372.0,0.07690098]
[1743398635822,0.57595638,82373.0,82372.0,0.07690098]
[1743398637269,0.556937,82373.0,82372.0,0.07690098]
[1743398638528,0.244798,82373.0,82372.0,0.07690098]
[1743398638732,0.244798,82373.0,82372.0,0.12470098]
[1743398638930,0.256937,82373.0,82372.0,0.12470098]
[1743398639137,0.255937,82373.0,82372.0,0.12470098]
[1743398639480,0.256937,82373.0,82372.0,0.12470098]
[1743398639631,0.255937,82373.0,82372.0,0.12470098]
[1743398639839,0.256937,82373.0,82372.0,0.12470098]
[1743398640236,0.2759536,82373.0,82372.0,0.12470098]
[1743398640466,0.2749536,82373.0,82372.0,0.12470098]
[1743398640647,0.2739536,82373.0,82372.0,0.12470098]
[1743398641050,0.2739536,82373.0,82372.0,0.12570098]
[1743398641415,0.2739536,82373.0,82372.0,0.15144093]
[1743398643765,0.2618146,82373.0,82372.0,0.15144093]
[1743398643974,0.0190166,82373.0,82372.0,0.15144093]
[1743398646851,0.254937,82373.0,82372.0,0.29328093]
[1743398647056,0.242798,82373.0,82372.0,0.29328093]
[1743398647260,0.242797,82374.0,82373.0,0.1298]
[1743398648865,0.242794,82375.0,82373.0,0.0481]
[1743398649210,0.242794,82375.0,82374.0,0.1298]
[1743398649661,0.242778,82380.0,82375.0,0.0817]
[1743398649872,0.254882,82391.0,82383.0,0.012138]
[1743398650071,0.242742,82392.0,82386.0,0.254896]
[1743398650277,0.254877,82393.0,82387.0,0.093837]
[1743398650477,0.01901251,82391.0,82390.0,0.093837]
[1743398651243,0.01901251,82391.0,82390.0,0.384683]
[1743398651596,0.01901251,82391.0,82390.0,0.40962104]
[1743398651799,0.01901251,82391.0,82390.0,0.41062104]
[1743398652230,0.01901251,82391.0,82390.0,0.40962104]
[1743398652402,0.01901251,82391.0,82390.0,0.41262104]
[1743398652805,0.01901251,82391.0,82390.0,0.41562104]
[1743398653004,0.01901251,82391.0,82390.0,0.16073804]
[1743398654484,0.26175651,82391.0,82390.0,0.16073804]
[1743398654685,0.27389351,82391.0,82390.0,0.16073804]
[1743398655096,0.01901251,82391.0,82390.0,0.16073804]
[1743398655296,0.26175651,82391.0,82390.0,0.16073804]
[1743398655902,0.33890676,82391.0,82390.0,0.16073804]
[1743398656559,0.35104376,82391.0,82390.0,0.16073804]
[1743398657006,0.33890676,82391.0,82390.0,0.16073804]
[1743398657210,0.33203125,82391.0,82390.0,0.16073804]
[1743398657606,0.31989425,82391.0,82390.0,0.16073804]
[1743398657818,0.242739,82393.0,82390.0,0.16073804]
[1743398658248,0.242744,82391.0,82390.0,0.16073804]
[1743398658627,0.254881,82391.0,82390.0,0.16073804]
[1743398658924,0.254881,82391.0,82390.0,0.15473804]
[1743398659124,0.3568301,82391.0,82390.0,0.15973804]
[1743398659345,0.1019491,82391.0,82390.0,0.15773804]
[1743398659547,0.1019491,82391.0,82390.0,0.15473804]
[1743398659771,0.254869,82395.0,82390.0,0.15773804]
[1743398659981,0.254869,82395.0,82390.0,0.16073804]
[1743398660142,0.242739,82393.0,82390.0,0.16073804]
[1743398660543,0.254881,82392.0,82390.0,0.16073804]
[1743398660743,0.012137,82391.0,82390.0,0.15773804]
[1743398661061,0.29804806,82391.0,82390.0,0.15473804]
[1743398661246,0.242744,82391.0,82390.0,0.15473804]
[1743398661446,0.01901163,82394.0,82390.0,0.15673804]
[1743398661628,0.01901163,82394.0,82390.0,0.15473804]
[1743398661838,0.01901163,82394.0,82393.0,0.0825]
[1743398664141,0.01901163,82394.0,82393.0,0.337375]
[1743398666958,0.01901163,82394.0,82393.0,0.339375]
[1743398667142,0.01901163,82394.0,82393.0,0.341375]
[1743398667343,0.242721,82400.0,82395.0,0.242733]
[1743398667551,0.242715,82401.0,82395.0,0.242733]
[1743398668212,0.012135,82402.0,82395.0,0.242733]
[1743398668438,0.012135,82402.0,82396.0,0.1257]
[1743398668921,0.242715,82401.0,82396.0,0.1257]
[1743398669354,0.012134,82409.0,82396.0,0.0479]
[1743398669556,0.242704,82405.0,82400.0,0.0778]
[1743398669782,0.242704,82405.0,82401.0,0.1418]
[1743398669984,0.242703,82406.0,82401.0,0.1418]
[1743398670287,0.0190099,82405.0,82401.0,0.1418]
[1743398670464,0.0190099,82405.0,82401.0,0.384515]
[1743398670890,0.0190099,82405.0,82401.0,0.38456199]
[1743398671269,0.0190099,82405.0,82401.0,0.14184699]
[1743398672449,0.0200099,82405.0,82401.0,0.14184699]
[1743398673295,0.0200099,82405.0,82404.0,0.02410985]
[1743398673889,0.0200099,82405.0,82404.0,0.14980985]
[1743398674983,0.0190099,82405.0,82404.0,0.14980985]
[1743398675414,0.0200099,82405.0,82404.0,0.14980985]
[1743398677324,0.001,82405.0,82404.0,0.14980985]
[1743398678328,0.001,82405.0,82404.0,0.15180985]
[1743398678808,0.0001682,82421.0,82406.0,0.0778]
[1743398679038,0.0001682,82421.0,82416.0,0.380504]
[1743398679270,0.0001682,82421.0,82416.0,0.64266883]
[1743398680314,0.01917187,82417.0,82416.0,0.64266883]
[1743398680985,0.01917187,82417.0,82416.0,0.64254883]
[1743398681139,0.01917187,82417.0,82416.0,0.1257]
[1743398681334,0.01917187,82417.0,82416.0,0.26746]
[1743398681941,0.01917187,82417.0,82416.0,0.27146]
[1743398682388,0.26183987,82417.0,82416.0,0.26746]
[1743398682536,0.26183987,82417.0,82416.0,0.1307]
[1743398682752,0.26183987,82417.0,82416.0,0.27246]
[1743398682957,0.26183987,82417.0,82416.0,0.27646]
[1743398683161,0.27397287,82417.0,82416.0,0.27646]
[1743398683344,0.26183987,82417.0,82416.0,0.27646]
[1743398685293,0.01917187,82417.0,82416.0,0.27646]
[1743398686187,0.26183987,82417.0,82416.0,0.27646]
[1743398687323,0.2428363,82417.0,82416.0,0.27646]
[1743398687561,0.0001683,82417.0,82416.0,0.27646]
[1743398688469,0.2428363,82417.0,82416.0,0.27646]
[1743398689052,0.0001683,82417.0,82416.0,0.27646]
[1743398689257,0.0001683,82417.0,82416.0,0.531264]
[1743398689716,0.0001683,82417.0,82416.0,0.27646]
[1743398690291,0.0191727,82417.0,82416.0,0.27646]
[1743398690677,0.0191727,82417.0,82416.0,0.288593]
[1743398691051,0.0191727,82417.0,82416.0,0.27646]
[1743398692674,0.0191727,82417.0,82416.0,0.1347]
[1743398692883,0.0191727,82417.0,82416.0,0.27646]
[1743398697055,0.0191727,82417.0,82416.0,0.1347]
[1743398697256,0.0001683,82417.0,82416.0,0.27646]
[1743398697857,0.0001683,82417.0,82416.0,0.27146]
[1743398698261,0.0001683,82417.0,82416.0,0.27546]
[1743398698462,0.0001683,82417.0,82416.0,0.27146]
[1743398698679,0.0001683,82417.0,82416.0,0.27546]
[1743398699412,0.2428363,82417.0,82416.0,0.27546]
[1743398700122,0.0001683,82417.0,82416.0,0.27546]
[1743398700329,0.01917122,82417.0,82416.0,0.27546]
[1743398707452,0.0001683,82417.0,82416.0,0.27546]
[1743398710339,0.01917107,82417.0,82416.0,0.27546]
[1743398710553,0.01917107,82417.0,82416.0,0.65054883]
[1743398712646,1e-08,82421.0,82420.0,0.254791]
[1743398712849,1e-08,82421.0,82420.0,0.51829943]
[1743398713590,1e-08,82421.0,82420.0,0.50597583]
[1743398713824,1e-08,82421.0,82420.0,0.53046336]
[1743398713997,1e-08,82421.0,82420.0,0.53646336]
[1743398714601,1e-08,82421.0,82420.0,0.53346336]
[1743398714930,1e-08,82421.0,82420.0,0.53946336]
[1743398715063,1e-08,82421.0,82420.0,0.54576653]
[1743398715265,1e-08,82421.0,82420.0,0.41617853]
[1743398715462,1e-08,82421.0,82420.0,0.42117853]
[1743398715664,1e-08,82421.0,82420.0,0.30810753]
[1743398716054,1e-08,82421.0,82420.0,0.32023953]
[1743398716955,1e-08,82421.0,82420.0,0.30810753]
[1743398719469,1e-08,82421.0,82420.0,0.32023953]
[1743398720312,0.01900165,82421.0,82420.0,0.32023953]
[1743398727467,1e-08,82421.0,82420.0,0.32023953]
[1743398730371,0.01900137,82421.0,82420.0,0.32023953]
[1743398730542,0.01900137,82421.0,82420.0,0.44052436]
[1743398732860,0.01900137,82421.0,82420.0,0.45311447]
[1743398733553,0.01900137,82421.0,82420.0,0.44711447]
[1743398733750,0.01900137,82421.0,82420.0,0.44211447]
[1743398733960,0.01900137,82421.0,82420.0,0.44811447]
[1743398734361,0.01900137,82421.0,82420.0,0.43552436]
[1743398735218,0.01900137,82421.0,82420.0,0.44152436]
[1743398735541,0.14727412,82440.0,82429.0,0.254762]
[1743398735928,0.01900029,82432.0,82431.0,0.254758]
[1743398736119,0.242612,82437.0,82431.0,0.334158]
[1743398736302,0.25534191,82437.0,82431.0,0.334158]
[1743398736657,0.25581196,82437.0,82431.0,0.334158]
[1743398736866,0.01319996,82437.0,82432.0,0.012131]
[1743398738997,0.01319996,82437.0,82432.0,0.015131]
[1743398739234,0.01319996,82437.0,82432.0,0.018131]
[1743398739392,0.01319996,82437.0,82432.0,0.006]
[1743398739812,0.01319996,82437.0,82436.0,0.02390875]
[1743398740050,0.00047005,82437.0,82436.0,0.16558875]
[1743398741933,0.00047005,82437.0,82436.0,0.17158875]
[1743398746074,0.01946998,82437.0,82436.0,0.17158875]
[1743398747421,0.00047005,82437.0,82436.0,0.17158875]
[1743398750314,0.24307905,82437.0,82436.0,0.17158875]
[1743398750560,0.26207865,82437.0,82436.0,0.17158875]
[1743398751937,0.26207865,82437.0,82436.0,0.006]
[1743398751938,0.01946965,82437.0,82436.0,0.006]
[1743398752181,0.27420865,82437.0,82436.0,0.14764]
[1743398753304,0.26207865,82437.0,82436.0,0.14764]
[1743398754187,0.26207865,82437.0,82436.0,0.006]
[1743398754310,0.27420865,82437.0,82436.0,0.14764]
[1743398754512,0.27179767,82437.0,82436.0,0.14764]
[1743398754714,0.25966767,82437.0,82436.0,0.14764]
[1743398757186,0.25500269,82439.0,82436.0,0.14764]
[1743398757435,0.01239669,82439.0,82437.0,0.1296]
[1743398757637,0.01239669,82439.0,82437.0,0.372209]
[1743398757841,0.242599,82441.0,82437.0,0.1296]
[1743398758456,0.01,82444.0,82438.0,0.01213]
[1743398758656,0.01,82444.0,82439.0,0.242603]
[1743398758979,0.01,82444.0,82441.0,0.242597]
[1743398759192,0.01,82444.0,82439.0,0.254733]
[1743398759817,0.01,82444.0,82440.0,0.01213]
[1743398760218,0.01899914,82443.0,82441.0,0.254726]
[1743398760468,0.01899914,82443.0,82442.0,0.092929]
[1743398762214,0.01899914,82443.0,82442.0,0.094929]
[1743398762776,0.01899914,82443.0,82442.0,0.095929]
[1743398763007,0.01899914,82443.0,82442.0,0.094929]
[1743398764013,0.01899914,82443.0,82442.0,0.096929]
[1743398764226,0.03112814,82443.0,82442.0,0.002]
[1743398764420,0.03112814,82443.0,82442.0,0.14364]
[1743398764646,0.01899914,82443.0,82442.0,0.14364]
[1743398764850,0.01899914,82443.0,82442.0,0.14664]
[1743398765047,0.03112814,82443.0,82442.0,0.14664]
[1743398765247,0.01899914,82443.0,82442.0,0.14664]
[1743398765447,0.01899914,82443.0,82442.0,0.14364]
[1743398765973,0.01899914,82443.0,82442.0,0.14164]
[1743398766374,0.01899914,82443.0,82442.0,0.401363]
[1743398766732,0.01899914,82443.0,82442.0,0.396363]
[1743398766935,0.01899914,82443.0,82442.0,0.398363]
[1743398767346,0.01,82444.0,82442.0,0.398363]
[1743398767546,0.022129,82444.0,82442.0,0.14564]
[1743398767753,0.012129,82443.0,82442.0,0.14564]
[1743398767959,0.012129,82443.0,82442.0,0.14364]
[1743398768370,0.012129,82443.0,82442.0,0.14564]
[1743398768572,0.012129,82443.0,82442.0,0.14364]
[1743398768993,0.012129,82443.0,82442.0,0.14464]
[1743398769277,0.012129,82443.0,82442.0,0.14364]
[1743398769647,0.012129,82443.0,82442.0,0.14564]
[1743398770390,0.03112721,82443.0,82442.0,0.14564]
[1743398770948,0.03112721,82443.0,82442.0,0.004]
[1743398771294,0.03112721,82443.0,82442.0,0.14564]
[1743398772559,0.470971,82443.0,82442.0,0.004]
[1743398772760,0.55093564,82443.0,82442.0,0.004]
[1743398773029,0.52062799,82443.0,82442.0,0.004]
[1743398773503,0.52062799,82443.0,82442.0,0.0001]
[1743398773932,0.43848867,82443.0,82442.0,0.0001]
[1743398774711,0.42394782,82443.0,82442.0,0.0011]
[1743398774918,0.38883168,82443.0,82442.0,0.001]
[1743398775076,0.01213,82437.0,82436.0,4.699e-05]
[1743398775276,0.554739,82437.0,82436.0,4.699e-05]
[1743398775483,0.242594,82442.0,82436.0,4.699e-05]
[1743398775664,0.242594,82442.0,82437.0,0.0462]
[1743398775869,0.242594,82442.0,82438.0,0.2166]
[1743398775870,0.01213,82439.0,82438.0,0.2166]
[1743398776494,0.01213,82439.0,82438.0,0.2156]
[1743398776913,0.01213,82439.0,82438.0,0.24042512]
[1743398779004,0.01213,82439.0,82438.0,0.1416]
[1743398780190,0.03112965,82439.0,82438.0,0.1416]
[1743398780761,0.01899965,82439.0,82438.0,0.1416]
[1743398782596,0.01899965,82439.0,82438.0,0.1212]
[1743398782803,0.01899965,82439.0,82438.0,0.2628]
[1743398783025,0.01899965,82439.0,82438.0,0.27493]
[1743398784217,0.01899965,82439.0,82438.0,0.39521483]
[1743398784722,0.004,82449.0,82448.0,0.254705]
[1743398784951,0.004,82449.0,82448.0,0.37498983]
[1743398785179,0.004,82449.0,82448.0,0.49618983]
[1743398785881,0.004,82449.0,82448.0,0.49918983]
[1743398786802,0.242473,82484.0,82460.0,0.254668]
[1743398787022,0.012124,82481.0,82460.0,1.26787283]
[1743398787446,0.012124,82480.0,82460.0,1.26787283]
[1743398787647,0.012124,82480.0,82460.0,1.27699555]
[1743398788067,0.00108,82461.0,82460.0,1.27699555]
[1743398789816,0.00108,82461.0,82460.0,0.75132]
[1743398790023,0.04736241,82461.0,82460.0,0.63012]
[1743398790284,0.40374302,82461.0,82460.0,0.63012]
[1743398790565,0.242603,82439.0,82436.0,4.699e-05]
[1743398790802,0.254758,82431.0,82430.0,0.0454]
[1743398791017,0.242627,82431.0,82430.0,0.14164699]
[1743398791218,0.242624,82432.0,82430.0,0.14164699]
[1743398791422,0.01900108,82431.0,82430.0,0.14164699]
[1743398791629,0.03113208,82431.0,82430.0,4.699e-05]
[1743398791985,0.33113208,82431.0,82430.0,4.699e-05]
[1743398792191,0.33113208,82431.0,82430.0,0.00404699]
[1743398792589,0.33113208,82431.0,82430.0,0.00704699]
[1743398793553,0.33113208,82431.0,82430.0,0.00304699]
[1743398793748,0.4639513,82431.0,82430.0,0.00604699]
[1743398793973,0.38971946,82431.0,82430.0,0.00604699]
[1743398794246,0.38971946,82431.0,82430.0,4.699e-05]
[1743398794494,0.38971946,82431.0,82430.0,0.00204699]
[1743398794721,0.38971946,82431.0,82430.0,0.00404699]
[1743398795124,0.33113208,82431.0,82430.0,0.00204699]
[1743398795339,0.33113208,82431.0,82430.0,4.699e-05]
[1743398795841,0.33213208,82431.0,82430.0,4.699e-05]
[1743398797202,0.37171838,82431.0,82430.0,4.699e-05]
[1743398797411,0.46105352,82431.0,82430.0,4.699e-05]
[1743398798723,0.37171838,82431.0,82430.0,4.699e-05]
[1743398799197,0.38625923,82431.0,82430.0,4.699e-05]
[1743398800255,0.4052653,82431.0,82430.0,4.699e-05]
[1743398800457,0.4042653,82431.0,82430.0,4.699e-05]
[1743398800835,0.4062653,82431.0,82430.0,4.699e-05]
[1743398801430,0.4082653,82431.0,82430.0,4.699e-05]
[1743398802308,0.50125513,82431.0,82430.0,4.699e-05]
[1743398802971,0.50625513,82431.0,82430.0,9.9e-07]
[1743398803197,0.242745,82391.0,82381.0,0.1416]
[1743398803536,0.13499268,82391.0,82382.0,0.153738]